Cogmind - Beta 15 @@@ ROGUE MODE // 2025.07.24 @ 22:03:32 Player: Cracklepappy Result: Self-destructed Performance ------------- Evolutions (1) 500 Regions Visited (6) 1200 Robots Destroyed (85) 425 Value Destroyed (1604) 1604 Prototype IDs (43) 860 Alien Tech Used (0) 0 Bonus (453) 453 TOTAL SCORE: 5042 Bonus ------- Follower Combat Kills 185 Aligned with FarCom 300 Friendly Fire -32 Cogmind --------- Core Integrity 272/400 Matter 300/300 Energy 280/280 System Corruption 0% Temperature Cool (0) Movement Rolling (145) Ox3 Location -8/Mines Parts ------- > --- POWER (1) -------- Cooled Ion Engine > --- PROPULSION (2) --- Compact Wheel Compact Wheel > --- UTILITY (2) ------ Huge Storage Unit Hardlight Generator > --- WEAPON (4) ------- Heavy Assault Rifle Heavy Assault Rifle Heavy Assault Rifle Heavy Assault Rifle > --- INVENTORY (25) --- Cooled Ion Engine Wheel Wheel Disposable Heat Sink Disposable Heat Sink High-capacity Storage Unit High-capacity Matter Pod (200) High-capacity Matter Pod (78) Machine Analyzer Medium Armor Plating Medium Armor Plating Medium Armor Plating Hardlight Generator Hardlight Generator Hardlight Generator Hacking Suite Heavy Assault Rifle Assault Cannon Assault Cannon Assault Cannon Assault Cannon Rocket Launcher Datajack Plasma Cutter Heavy Hammer Peak State ------------ > --- POWER ------------ Cooled Ion Engine > --- PROPULSION ------- Compact Wheel Compact Wheel > --- UTILITY ---------- Huge Storage Unit Hardlight Generator > --- WEAPON ----------- Assault Cannon Assault Cannon Assault Cannon Rocket Launcher > --- INVENTORY -------- Cooled Ion Engine Wheel Wheel Disposable Heat Sink Disposable Heat Sink Cloak of Protection Medium Armor Plating Medium Armor Plating Hardlight Generator Hardlight Generator AWS/Thermal Heavy Assault Rifle Heavy Assault Rifle Heavy Assault Rifle Heavy Assault Rifle Heavy Assault Rifle Assault Cannon Heavy Hammer [Rating: 25] Favorites ----------- Power Cooled Ion Engine Engine Cooled Ion Engine Power Core Light Nuclear Core Propulsion Wheel Wheel Wheel Utility Huge Storage Unit Device Hardlight Generator Storage Huge Storage Unit Protection Light Armor Plating Weapon Heavy Assault Rifle Energy Gun EM Pulse Gun Energy Cannon Beam Cannon Ballistic Gun Heavy Assault Rifle Ballistic Cannon Improved Light Cannon Launcher Rocket Launcher Special Weapon Mining Laser Impact Weapon Heavy Hammer Special Melee Weapon Datajack Build | -11 -10 -10 -9 -9 -9 -8 ------- Run | Yrd Mat Min Mat Min Exi Min Slots Evolved 2 | . . . 2 . . . Power . | . . . . . . . Propulsion . | . . . . . . . Utility . | . . . . . . . Weapon 2 | . . . 2 . . . Parts Attached 65 | 11 10 5 32 1 6 . Power 5 | 1 2 . 2 . . . Engine 4 | 1 2 . 1 . . . Core 1 | . . . 1 . . . Reactor . | . . . . . . . Propulsion 20 | 5 1 4 8 1 1 . Treads . | . . . . . . . Leg . | . . . . . . . Wheel 20 | 5 1 4 8 1 1 . Hover . | . . . . . . . Flight . | . . . . . . . Utility 12 | 2 4 . 6 . . . Device 6 | 1 . . 5 . . . Storage 3 | 1 2 . . . . . Processor . | . . . . . . . Hackware . | . . . . . . . Protection 3 | . 2 . 1 . . . Artifact . | . . . . . . . Weapon 28 | 3 3 1 16 . 5 . Energy Gun 3 | . 3 . . . . . Energy Cannon 6 | . . . 6 . . . Ballistic Gun 9 | 3 . . 5 . 1 . Ballistic Cannon 6 | . . . 2 . 4 . Launcher 1 | . . 1 . . . . Special Weapon 1 | . . . 1 . . . Impact Weapon 1 | . . . 1 . . . Slashing Weapon . | . . . . . . . Piercing Weapon . | . . . . . . . Special Melee Weapon 1 | . . . 1 . . . Unidentified Prototypes 2 | . . . 2 . . . Parts Lost 1 | . 1 . . . . . Power . | . . . . . . . Propulsion 1 | . 1 . . . . . Utility . | . . . . . . . Weapon . | . . . . . . . Highest Loss Streak 1 | . 1 . . . . . To Critical Strikes . | . . . . . . . Average Backups 21 | 4 12 24 24 25 20 25 Power 1 | . 1 1 1 1 1 1 Propulsion 2 | 2 1 1 3 2 2 2 Utility 11 | . 6 12 13 13 9 13 Weapon 6 | 1 3 7 6 7 7 7 Tool/Special . | . . . . . . . Unused Backups 50 | 2 6 7 17 . 4 14 Power 4 | . . 1 2 . . 1 Propulsion 9 | 2 2 2 3 . . . Utility 30 | . 1 3 11 . 3 12 Weapon 6 | . 3 1 1 . 1 . Tool/Special 1 | . . . . . . 1 Average Slot Usage (%) 99 | . 99 100 99 100 100 100 Engine 9 | . 14 14 4 11 11 11 Core 2 | . . . 6 . . . Wheel 24 | . 27 28 22 22 22 22 Device 6 | . 5 . 7 11 11 11 Storage 12 | . 14 14 11 11 11 11 Protection 5 | . 8 14 3 . . . Energy Gun 8 | . 20 27 . . . . Energy Cannon 7 | . . . 18 . . . Ballistic Gun 15 | . 7 . 15 44 17 44 Ballistic Cannon 5 | . . . 8 . 17 . Peak Build Rating 25 | 7 9 10 22 22 25 22 Average Rating 15 | 5 7 9 18 22 22 22 On Entrance 13 | . 7 9 10 22 22 22 Naked Turns . | . . . . . . . Heaviest Build 113 | 14 92 94 109 105 113 105 Greatest Support 32 | 32 20 20 32 20 32 32 Greatest Overweight (x) 5 | . 4 4 5 5 5 3 Average Overweight (x) 3 | . 1 4 3 5 3 3 Largest Inventory Capacity 25 | 8 25 25 25 25 25 25 Average Capacity 22 | 7 14 25 25 25 25 25 Most Carried 25 | 8 25 25 25 25 25 25 Average Carried 21 | 4 12 24 24 25 21 25 Final Capacity 25 | 8 25 25 25 25 25 25 Final Carried 25 | 8 25 25 25 25 25 25 Class Distribution -------------------- 33% | Mutant 29% | Tank 13% | Scavenger-Tank 11% | Scavenger-Gunner 8% | Gunner 3% | Scavenger-Mutant Dominant Class ---------------- Mutant | -10/Materials Mutant | -10/Mines Tank | -9/Materials Scavenger-Tank | -9/Mines Tank | -9/Exiles Tank | -8/Mines Resources | -11 -10 -10 -9 -9 -9 -8 ----------- Run | Yrd Mat Min Mat Min Exi Min Matter Collected 2942 | 382 770 121 1223 130 294 22 Remotely . | . . . . . . . Salvage Created 3059 | 282 668 123 1881 83 . 22 Parts 178 | 16 42 6 102 9 . 3 Haulers Intercepted 7 | . 2 . 5 . . . Recyclers Shooed 9 | . 6 . 3 . . . Parts Field Recycled . | . . . . . . . Retrieved Matter . | . . . . . . . Parts Self-Destructed . | . . . . . . . Prevented . | . . . . . . . Kills | -11 -10 -10 -9 -9 -9 -8 ------- Run | Yrd Mat Min Mat Min Exi Min Combat Hostiles Destroyed 45 | . 9 5 26 5 . . Guns 24 | . 9 2 8 5 . . Cannons 17 | . . . 17 . . . AOE 3 | . . 3 . . . . Classes Destroyed 15 | 3 6 1 4 . . 1 Worker 6 | 2 1 1 2 . . . Builder 5 | . 2 2 1 . . . Tunneler 7 | 6 . . 1 . . . Hauler 7 | . 2 . 5 . . . Recycler 9 | 1 3 . 5 . . . Mechanic 2 | . 1 . 1 . . . Operator 2 | . . . 2 . . . Watcher 5 | . 1 . 4 . . . Swarmer 13 | . 6 . 2 5 . . Grunt 17 | . 3 1 13 . . . Brawler 1 | . . . 1 . . . Duelist 1 | . . . 1 . . . Sentry 9 | . . . 9 . . . Zionite 1 | . . . . . . 1 Assembled 4 | . . 4 . . . . Best Kill Streak 5 | 3 4 4 5 3 . . Combat Bots Only 3 | . 3 3 3 3 . . Max Kills in Single Turn 2 | 1 2 2 2 1 . 1 Gunslinging 1 | . 1 . . . . . Exploded 1 | . . 1 . . . . Melee . | . . . . . . . Uniques/NPCs Destroyed . | . . . . . . . Combat | -11 -10 -10 -9 -9 -9 -8 -------- Run | Yrd Mat Min Mat Min Exi Min Hostile Shots Fired 160 | . 58 5 84 13 . . Missed 47 | . 13 2 26 6 . . Hits 113 | . 45 3 58 7 . . Melee 4 | . . 1 3 . . . Projectile 109 | . 45 2 55 7 . . Critical Strikes 4 | . 1 . 3 . . . Damage Taken 1283 | . 408 59 787 29 . . Core 244 | . 116 . 115 13 . . Absorbed by Shields 76 | . . . 48 28 . . Core Remaining (%) 76 | 100 . 53 . . . . Volleys Fired 209 | 36 68 12 81 10 1 1 Largest 4 | 2 2 2 4 4 4 4 Hottest 248 | 40 80 80 248 92 92 92 Shots Fired 591 | 72 133 20 318 40 4 4 Gun 360 | 72 133 16 91 40 4 4 Cannon 226 | . . . 226 . . . Launcher 4 | . . 4 . . . . Special 1 | . . . 1 . . . Kinetic 347 | 72 78 . 149 40 4 4 Thermal 192 | . 23 . 169 . . . Explosive 4 | . . 4 . . . . Electromagnetic 48 | . 32 16 . . . . Robot Hit Streak 15 | 4 10 7 15 4 . 1 Robot Miss Streak 4 | 4 4 2 4 4 . 1 Penetration Max . | . . . . . . . Secondary Targets 2 | . 2 . . . . . Max Gunslinging Chain 1 | . 1 . . . . . Shots Hit Robots 303 | 38 81 11 154 14 4 1 Core Hits 115 | 14 31 8 56 5 . 1 Critical Kills 1 | . . . 1 . . . Critical Parts Destroyed . | . . . . . . . Critical Strikes 2 | . 1 . 1 . . . Meltdown 1 | . . . 1 . . . Corrupt 1 | . 1 . . . . . Melee Attacks 7 | . . . 3 . 4 . Impact 1 | . . . 1 . . . Slashing . | . . . . . . . Piercing . | . . . . . . . Sneak Attacks 6 | . . . 2 . 4 . Combat Hostiles . | . . . . . . . Follow-up Attacks . | . . . . . . . Damage Inflicted 4799 | 314 1041 343 2890 199 . 12 Guns 2299 | 314 971 121 682 199 . 12 Cannons 2196 | . . . 2196 . . . Explosions 292 | . 70 222 . . . . Melee . | . . . . . . . Ramming 12 | . . . 12 . . . Kinetic 2293 | 314 585 . 1183 199 . 12 Thermal 1863 | . 168 . 1695 . . . Explosive 222 | . . 222 . . . . Electromagnetic 409 | . 288 121 . . . . Impact . | . . . . . . . Slashing . | . . . . . . . Piercing . | . . . . . . . Highest Corruption . | . . . . . . . Average Corruption . | . . . . . . . Corruption Purged . | . . . . . . . Corruption Blocked . | . . . . . . . Overload Shots . | . . . . . . . Overflow Damage 80 | . 30 32 18 . . . Projectiles 18 | . . . 18 . . . Explosions 62 | . 30 32 . . . . Melee . | . . . . . . . Knockbacks 2 | . . . 2 . . . Impact . | . . . . . . . Kinetic 2 | . . . 2 . . . Secondary . | . . . . . . . Self-Inflicted Damage 6 | . . . 6 . . . Shots . | . . . . . . . Rammed 1 | . . . 1 . . . Targets Rammed 1 | . . . 1 . . . Kicked . | . . . . . . . Crushed . | . . . . . . . Highest Temperature 464 | . 189 81 464 30 15 15 Average Temperature 86 | . 49 35 104 11 10 10 Received Heat Transfer 376 | . 87 40 249 . . . Effects 5 | . . . 5 . . . Shutdowns 1 | . . . 1 . . . Interference 3 | . . . 3 . . . Short Circuit 1 | . . . 1 . . . Siege Activations . | . . . . . . . Martial Activations . | . . . . . . . Shielding Activations . | . . . . . . . Robots Disrupted . | . . . . . . . Combat Hostiles . | . . . . . . . Robots Corrupted 1 | . 1 . . . . . Combat Hostiles . | . . . . . . . Parts Fried 2 | . 2 . . . . . Impact Corruptions . | . . . . . . . Robots Melted 2 | . . . 2 . . . Combat Hostiles 1 | . . . 1 . . . Parts Melted 12 | . . . 12 . . . Heat Transferred 3716 | . 275 . 3441 . . . Parts Sabotaged . | . . . . . . . Parts Stolen . | . . . . . . . Parts Stripped . | . . . . . . . Power Chain Reactions . | . . . . . . . Alert | -11 -10 -10 -9 -9 -9 -8 ------- Run | Yrd Mat Min Mat Min Exi Min Maximum Alert Level 1 | . . . 1 1 . . Low Security (%) 77 | 100 100 100 46 99 . 100 Level 1 22 | . . . 53 . . . Level 2 . | . . . . . . . Level 3 . | . . . . . . . Level 4 . | . . . . . . . Level 5 . | . . . . . . . High Security . | . . . . . . . Max Security . | . . . . . . . Peak Influence 365 | 10 127 47 365 203 . . Initial 136 | . . 23 . 136 . . Average 100 | 1 46 6 186 83 . . Influence Increases 1956 | 45 427 134 1083 267 . . Destroy 0b10 Robot/C 1040 | . 180 60 600 200 . . Destroy 0b10 Robot/NC 215 | 45 50 15 105 . . . Destroy Leader 294 | . 46 20 198 30 . . Allied During Kill 19 | . . 5 7 7 . . Successful Hack 81 | . 27 . 54 . . . Select Force Hacks 60 | . 60 . . . . . Disable Machine 105 | . 45 . 60 . . . Destroy Structure 52 | . 4 34 14 . . . Lose Combat Pursuer 90 | . 15 . 45 30 . . Influence Decreases 1956 | 45 367 194 731 619 . . Entered New Map 253 | . . 37 . 216 . . Time Decay 1482 | 45 357 146 551 383 . . Lost Part 10 | . 10 . . . . . Lost Ally 61 | . . 11 30 20 . . Purge Threat 150 | . . . 150 . . . Squads Dispatched 6 | . 4 . 2 . . . Investigation 5 | . 4 . 1 . . . Extermination . | . . . . . . . Reinforcement 1 | . . . 1 . . . Assault . | . . . . . . . Garrison . | . . . . . . . Intercept . | . . . . . . . Searches Triggered . | . . . . . . . Construction Impeded . | . . . . . . . Haulers Reinforced . | . . . . . . . Active Scanning Responses . | . . . . . . . Cargo Convoy Interrupts . | . . . . . . . Stealth | -11 -10 -10 -9 -9 -9 -8 --------- Run | Yrd Mat Min Mat Min Exi Min Distress Signals 9 | . 1 . 8 . . . Communications Jammed . | . . . . . . . Distress Signals . | . . . . . . . Times Spotted 97 | . 24 7 56 10 . . Peak Tracking Total 7 | . 4 2 7 4 . . Tactical Retreats 6 | . 1 . 3 2 . . Traps | -11 -10 -10 -9 -9 -9 -8 ------- Run | Yrd Mat Min Mat Min Exi Min Traps Triggered 2 | . 1 . 1 . . . Indirectly . | . . . . . . . Trap Hack Attempts 70 | . . . 70 . . . Triggered . | . . . . . . . Disarmed 2 | . . . 2 . . . Reprogrammed 1 | . . . 1 . . . Reused . | . . . . . . . Traps Extracted . | . . . . . . . Installed . | . . . . . . . Triggered . | . . . . . . . Machines | -11 -10 -10 -9 -9 -9 -8 ---------- Run | Yrd Mat Min Mat Min Exi Min Machines Disabled 8 | . 3 . 4 . 1 . Max in Single Turn 2 | . 2 . 1 . 1 . Machines Repaired . | . . . . . . . Machines Dismantled . | . . . . . . . Machines Sabotaged . | . . . . . . . Overloaded Fab Kills . | . . . . . . . Hacking | -11 -10 -10 -9 -9 -9 -8 --------- Run | Yrd Mat Min Mat Min Exi Min Machines Accessed 24 | . 10 . 12 . 2 . Terminals 19 | . 8 . 11 . . . Fabricators . | . . . . . . . Repair Stations . | . . . . . . . Recycling Units 2 | . 2 . . . . . Scanalyzers 1 | . . . 1 . . . Garrison Access . | . . . . . . . Total Hacks 70 | . 31 . 37 . 2 . Successful 39 | . 15 . 22 . 2 . Failed 30 | . 16 . 14 . . . Catastrophic 7 | . 5 . 2 . . . Database Lockouts 1 | . . . 1 . . . Manual 49 | . 25 . 23 . 1 . Terminals 61 | . 28 . 33 . . . Fabricators . | . . . . . . . Repair Stations . | . . . . . . . Recycling Units 3 | . 3 . . . . . Scanalyzers 4 | . . . 4 . . . Garrison Access . | . . . . . . . Terminal Hacks 20 | . 6 . 12 . 2 . Record 1 | . . . . . 1 . Part Schematic 5 | . 1 . 4 . . . Robot Schematic 1 | . 1 . . . . . Robot Analysis 2 | . 1 . 1 . . . Prototype ID Bank 2 | . 1 . 1 . . . Emergency Access Points 1 | . . . 1 . . . Terminal Index 1 | . . . 1 . . . Unreport Threat 1 | . . . 1 . . . Locate Traps 4 | . 2 . 2 . . . Hauler Manifests 1 | . . . 1 . . . Proto ID Catalog 1 | . . . . . 1 . Fabricator Hacks . | . . . . . . . Repair Station Hacks . | . . . . . . . Recycling Unit Hacks . | . . . . . . . Scanalyzer 4 | . . . 4 . . . Insert Component 2 | . . . 2 . . . Analyze 2 | . . . 2 . . . Garrison Access Hacks . | . . . . . . . Unauthorized Hacks 15 | . 9 . 6 . . . Terminals 13 | . 7 . 6 . . . Assimilate 1 | . . . 1 . . . Operators 1 | . 1 . . . . . Skim 11 | . 6 . 5 . . . Fabricators . | . . . . . . . Repair Stations . | . . . . . . . Recycling Units 2 | . 2 . . . . . Tunnel 2 | . 2 . . . . . Scanalyzers . | . . . . . . . Garrison Access . | . . . . . . . Data Cores Recovered 1 | . . . 1 . . . Used . | . . . . . . . Hacking Detections 19 | . 8 . 11 . . . Full Trace Events 1 | . 1 . . . . . Feedback Events . | . . . . . . . Feedback Blocked . | . . . . . . . Robot Schematics Acquired 1 | . 1 . . . . . Robots Built . | . . . . . . . Authchips . | . . . . . . . Time . | . . . . . . . Total Robot Build Rating . | . . . . . . . Part Schematics Acquired 6 | . 1 . 5 . . . Parts Built . | . . . . . . . Authchips . | . . . . . . . Time . | . . . . . . . Total Part Build Rating . | . . . . . . . Parts Repaired . | . . . . . . . Time . | . . . . . . . Parts Recycled . | . . . . . . . Recycled Matter . | . . . . . . . Retrieved Matter . | . . . . . . . Retrieved Components . | . . . . . . . Parts Scanalyzed 2 | . . . 2 . . . Part Schematics Acquired 2 | . . . 2 . . . Parts Damaged . | . . . . . . . Bothacking | -11 -10 -10 -9 -9 -9 -8 ------------ Run | Yrd Mat Min Mat Min Exi Min Used RIF Installer . | . . . . . . . Robots Hacked 6 | . . . 2 . 4 . Non-combat 5 | . . . 2 . 3 . Combat 1 | . . . . . 1 . Robot Hacks Applied 6 | . . . 2 . 4 . parse_system 6 | . . . 2 . 4 . Relay Couplers Released . | . . . . . . . Fabnet Peak Effective % . | . . . . . . . Robots Rewired . | . . . . . . . Allies Hacked . | . . . . . . . Hacks Repelled . | . . . . . . . Allies | -11 -10 -10 -9 -9 -9 -8 -------- Run | Yrd Mat Min Mat Min Exi Min Total Allies 5 | . . 3 1 1 . . Largest Group 3 | . . 3 1 1 . . Highest-Rated Group 40 | . . 40 16 31 . . Highest-Rated Ally 31 | . . 16 16 31 . . Total Orders 2 | . . . 2 . . . STAY 1 | . . . 1 . . . FOLLOW 1 | . . . 1 . . . Ally Attacks 48 | . . 16 15 17 . . Total Damage 534 | . . 121 141 272 . . Kills 11 | . . 2 4 5 . . Allies Corrupted . | . . . . . . . Allies Melted . | . . . . . . . Intel | -11 -10 -10 -9 -9 -9 -8 ------- Run | Yrd Mat Min Mat Min Exi Min Active Infowar (turns) 478 | 63 415 . . . . . Seismic 478 | 63 415 . . . . . Robot Analysis Total 2 | . 1 . 1 . . . Derelict Logs Recovered 2 | . . 1 . 1 . . Drone Launches . | . . . . . . . Drone Recoveries . | . . . . . . . Exploration | -11 -10 -10 -9 -9 -9 -8 ------------- Run | Yrd Mat Min Mat Min Exi Min Turns Passed 7467 | 273 1108 1370 2711 947 1050 8 Spaces Moved 4389 | 166 832 675 1484 574 655 3 Core 3 | 3 . . . . . . Treads . | . . . . . . . Legs . | . . . . . . . Wheels 4386 | 163 832 675 1484 574 655 3 Hover . | . . . . . . . Flight . | . . . . . . . Fastest Speed 50 | 50 80 140 135 155 145 145 Average Speed 135 | 92 103 140 143 155 149 145 Slowest Speed 155 | 100 140 140 155 155 155 145 Overloaded Moves . | . . . . . . . Propulsion Burnouts . | . . . . . . . Robots Hopped . | . . . . . . . Potential Cave-ins . | . . . . . . . Cave-ins Triggered . | . . . . . . . Exploration Rate (%) 67 | 6 97 99 98 98 70 5 Regions Visited 6 Branch Regions 4 Pre-discovered Areas 6 | . 3 1 1 . 1 . Known Exits Taken 3 | . . 1 1 1 . . Unknown Exits Taken 3 | 1 1 . . . 1 . Scrap Searched 3 | . . 1 . 2 . . Spaces Dug 17 | . . 15 2 . . . Terrain Destroyed 55 | . 4 44 7 . . . Melee 1 | . . . 1 . . . Projectile 6 | . . . 6 . . . AOE 48 | . 4 44 . . . . Terrain Rammed . | . . . . . . . Walls Destroyed . | . . . . . . . Machines Disabled . | . . . . . . . Actions | -11 -10 -10 -9 -9 -9 -8 --------- Run | Yrd Mat Min Mat Min Exi Min Total 5477 | 223 962 1086 1870 607 725 4 Wait 532 | . 6 376 101 22 27 . Move 4383 | 165 831 674 1483 573 654 3 Hop . | . . . . . . . Pick Up 93 | 8 30 7 35 . 13 . Fast Attach 11 | 7 . . 4 . . . Attach 3 | . 1 . 2 . . . Detach . | . . . . . . . Swap 80 | 4 10 6 46 1 13 . Drop 88 | 3 16 11 44 1 13 . Fire 209 | 36 68 12 81 10 1 1 Melee 7 | . . . 3 . 4 . Ram 1 | . . . 1 . . . Kick . | . . . . . . . Crush . | . . . . . . . Escape Stasis . | . . . . . . . Rewire . | . . . . . . . Trap 70 | . . . 70 . . . Miscellaneous . | . . . . . . . Route ------- -11/Scrapyard -10/Materials (discovered 5 exits: *Mat x3 / [*Min x2]) -10/Mines (discovered 3 exits: *Mat x2 / Sub) -9/Materials (discovered 5 exits: *Mat x3 / *Min x2) -9/Mines (discovered 3 exits: *Mat x2 / *Exi) -9/Exiles (discovered 2 exits: [*Min x2]) -8/Mines (discovered 2 exits: Mat x2) History --------- Turn | Location | Event 38 | -11/Scrapyard | Discovered new exit (range 15) 274 | -11/Scrapyard | Entered Materials 307 | -10/Materials | Build established: Mutant 334 | -10/Materials | Discovered new exit (range 5) 617 | -10/Materials | Discovered new exit (range 9) 743 | -10/Materials | Discovered new exit (range 16) 787 | -10/Materials | Discovered new exit (range 16) 837 | -10/Materials | Identified exit to Materials 879 | -10/Materials | Learned 2 Mines zone layouts 913 | -10/Materials | Learned location of 2 exits from Mines 939 | -10/Materials | Learned location of Recycling (-7) 977 | -10/Materials | Learned 2 Storage zone layouts 1002 | -10/Materials | Learned Storage garrison access intel 1382 | -10/Materials | Entered Mines 1384 | -10/Mines | Identified exit to Subcaves 1389 | -10/Mines | Received a Rocket Launcher from a helpful Derelict 1629 | -10/Mines | Assembled infested the area 2200 | -10/Mines | Assisted by bots powering up and referring to "LRC-V3" 2295 | -10/Mines | Learned location of Zion (-6) 2752 | -10/Mines | Entered Materials 2752 | -9/Materials | Accompanied by 1 ally 2752 | -9/Materials | Evolved 2 slots: Weapon x2 2753 | -9/Materials | Identified exit to Materials 3123 | -9/Materials | Discovered new exit (range 13) 3212 | -9/Materials | Build established: Scavenger-Gunner 4149 | -9/Materials | Identified exit to Mines 4209 | -9/Materials | Learned location of 2 exits from Materials 4257 | -9/Materials | Learned Storage stockpile data 4343 | -9/Materials | Build established: Tank 4536 | -9/Materials | Central database locked down 5463 | -9/Materials | Entered Mines 5465 | -9/Mines | Identified exit to Exiles 5696 | -9/Mines | Received a Mining Laser from a helpful Derelict 5749 | -9/Mines | Learned 4 Materials zone layouts 5761 | -9/Mines | Build established: Scavenger-Tank 6369 | -9/Mines | Build established: Tank 6404 | -9/Mines | Deemed a non-threat by the Exiles lab entrance 6410 | -9/Mines | Entered Exiles 6431 | -9/Exiles | Discovered new exit (range 15) 6449 | -9/Exiles | Met 8R-AWN 6475 | -9/Exiles | Met EX-HEX 6571 | -9/Exiles | Met EX-DEC 6645 | -9/Exiles | Met EX-BIN 6844 | -9/Exiles | Discovered new exit (range 10) 7130 | -9/Exiles | Aligned with FarCom system 7132 | -9/Exiles | Given EX-Vault access code 7166 | -9/Exiles | Opened EX-Vault 7178 | -9/Exiles | Found Cloak of Protection 7181 | -9/Exiles | Found AWS/Thermal 7211 | -9/Exiles | Warned to stay clear of 0b10 Research branches 7227 | -9/Exiles | Exiles lab attacked by MAIN.C 7460 | -9/Exiles | Entered Mines 7468 | -8/Mines | Self-destructed Last Messages --------------- 07350_ J5-HVA exits level. 07354_ GM-J5T exits level. 07354_ DK-RAY exits level. 07357_ ZX-C33 exits level. 07362_ 5L-KAT exits level. 07365_ W1-DM0 exits level. 07368_ AM-PHS exits level. 07384_ 8R-AWN: "We've got company!" 07388_ 8R-AWN: "I'll cover you all, get out of here!" 07411_ Machine disabled. 07415_ Extracted 132 matter. 07416_ Acquired Hcp. Matter Pod. 07417_ Extracted 132 matter. 07418_ Acquired Hcp. Matter Pod. LOCATION=UNKNOWN GOAL=ESCAPE 07460_ Receiving FarCom transmissions... 07460_ J5-HVA destroyed. Loading 2 Materials entrances... 07467_ Acquired 22 matter. Map ----- +----------------------------------------------------+ | ?????????????????????????????????????????????????? | | ?????????????????????????????????????????????????? | | ?????????????????????????????????????????????????? | | ?????????????????????????????????????????????????? | | ?????????????????????????????????????????????????? | | ?????????????????????????????????????????????????? | | ?????????????????????????????????????????????????? | | ?????????????????????????????????????????????????? | | ?????????????????????????????????????????????????? | | ?????????????????????????????????????????????????? | | ?????????????????????????????????????????????????? | | ?????????????????????????????????????????????????? | | ?????????????????????????????????????????????????? | | ?????????????????????????????????????????????????? | | ?????????????????????????????????????????????????? | | ?????????????????????????????????????????????????? | | ?????????????????????##??????????????????????????? | | ?????????????????????# ??????????????????s???????? | | ?????????????????????# ???????####??????s????????? | | ?????????????????????# ??????# ##?????ss???????? | | ?????????????????????# ????# ???????????????? | | ?????????????????????# ??## ?????????????????? | | ?????????????????????# ## ???????????????????? | | ?????????????????????# # #??????????????